[Event "Titled Tuesday Blitz May 23 Early 2023"]
[White "Begunov, Konstantin"]
[Black "Vitiugov, Nikita"]
[WhiteFideId "4118510"]
[BlackFideId "4152956"]
[WhiteElo "2050"]
[BlackElo "2673"]
[Result "0-1"]
[Round "02"]
[TimeControl "180+2"]
[Date "2023.05.23"]
[WhiteClock "0:00:00"]
[BlackClock "0:00:11"]

1. d4 {[%clk 0:02:54]}  Nf6 {[%clk 0:02:58]} 2. c4 {[%clk 0:02:53]}  g6 {[%clk 0:02:59]} 3. f3 {[%clk 0:02:53]}  d6 {[%clk 0:02:55]} 4. e4 {[%clk 0:02:53]}  e5 {[%clk 0:02:55]} 5. Ne2 {[%clk 0:02:49]}  Nc6 {[%clk 0:02:38]} 6. Nbc3 {[%clk 0:02:49]}  Bg7 {[%clk 0:02:28]} 7. Bg5 {[%clk 0:02:46]}  h6 {[%clk 0:02:27]} 8. Be3 {[%clk 0:02:46]}  a6 {[%clk 0:02:23]} 9. d5 {[%clk 0:02:31]}  Ne7 {[%clk 0:02:15]} 10. Qd2 {[%clk 0:02:30]}  h5 {[%clk 0:02:14]} 11. O-O-O {[%clk 0:02:29]}  Nd7 {[%clk 0:02:03]} 12. Kb1 {[%clk 0:02:27]}  a5 {[%clk 0:01:58]} 13. Nc1 {[%clk 0:02:26]}  Nc5 {[%clk 0:01:58]} 14. Nd3 {[%clk 0:02:25]}  b6 {[%clk 0:01:57]} 15. a3 {[%clk 0:02:16]}  Nb3 {[%clk 0:01:53]} 16. Qf2 {[%clk 0:02:13]}  a4 {[%clk 0:01:49]} 17. Ka2 {[%clk 0:02:07]}  Bd7 {[%clk 0:01:48]} 18. Nb5 {[%clk 0:01:58]}  Bh6 {[%clk 0:01:36]} 19. Bxh6 {[%clk 0:01:52]}  Rxh6 {[%clk 0:01:37]} 20. Nc1 {[%clk 0:01:51]}  Nc5 {[%clk 0:01:34]} 21. Nd3 {[%clk 0:01:45]}  Kf8 {[%clk 0:01:21]} 22. Nxc5 {[%clk 0:01:40]}  bxc5 {[%clk 0:01:21]} 23. Bd3 {[%clk 0:01:39]}  Bxb5 {[%clk 0:01:13]} 24. cxb5 {[%clk 0:01:38]}  Nc8 {[%clk 0:01:14]} 25. b4 {[%clk 0:01:22]}  cxb4 {[%clk 0:01:10]} 26. axb4 {[%clk 0:01:20]}  Nb6 {[%clk 0:01:09]} 27. Rc1 {[%clk 0:01:16]}  Kg7 {[%clk 0:01:01]} 28. Rc6 {[%clk 0:01:16]}  Rh8 {[%clk 0:00:50]} 29. Rhc1 {[%clk 0:01:15]}  Ra7 {[%clk 0:00:49]} 30. h4 {[%clk 0:01:14]}  Qe7 {[%clk 0:00:42]} 31. g3 {[%clk 0:01:14]}  Rb8 {[%clk 0:00:39]} 32. Ka3 {[%clk 0:01:11]}  Rbb7 {[%clk 0:00:36]} 33. Bf1 {[%clk 0:01:10]}  Qf6 {[%clk 0:00:27]} 34. Qe3 {[%clk 0:01:07]}  Qe7 {[%clk 0:00:19]} 35. Bh3 {[%clk 0:01:07]}  Qf6 {[%clk 0:00:18]} 36. Qc3 {[%clk 0:01:04]}  Qe7 {[%clk 0:00:17]} 37. f4 {[%clk 0:00:59]}  Kg8 {[%clk 0:00:14]} 38. fxe5 {[%clk 0:00:53]}  dxe5 {[%clk 0:00:15]} 39. Rf1 {[%clk 0:00:41]}  Na8 {[%clk 0:00:11]} 40. d6 {[%clk 0:00:35]}  cxd6 {[%clk 0:00:10]} 41. Rc8+ {[%clk 0:00:35]}  Kg7 {[%clk 0:00:11]} 42. g4 {[%clk 0:00:25]}  Nc7 {[%clk 0:00:10]} 43. Ka2 {[%clk 0:00:18]}  Nxb5 {[%clk 0:00:10]} 44. Qg3 {[%clk 0:00:15]}  Qe6+ {[%clk 0:00:10]} 45. Ka1 {[%clk 0:00:13]}  Qb3 {[%clk 0:00:10]} 46. Qxb3 {[%clk 0:00:11]}  axb3+ {[%clk 0:00:11]} 47. Kb2 {[%clk 0:00:11]}  Nd4 {[%clk 0:00:11]} 48. gxh5 {[%clk 0:00:09]}  Ra2+ {[%clk 0:00:11]} 49. Kb1 {[%clk 0:00:08]}  Rba7 {[%clk 0:00:11]} 50. hxg6 {[%clk 0:00:04]}  Ra1+ {[%clk 0:00:11]} 51. Kb2 {[%clk 0:00:05]}  R7a2+ {[%clk 0:00:11]} 52. Kc3 {[%clk 0:00:05]}  Rxf1 {[%clk 0:00:11]} 53. Bxf1 {[%clk 0:00:05]}  Rc2+ {[%clk 0:00:11]} 54. Kd3 {[%clk 0:00:04]}  Rxc8 {[%clk 0:00:11]} 55. gxf7 {[%clk 0:00:00]}  b2 {[%clk 0:00:11]} 0-1


[Site "https://www.chess.com"]

[Event "Titled Tuesday Blitz May 23 Early 2023"]
[White "Ziatdinov, Raset"]
[Black "carokannlover213"]
[WhiteFideId "2015323"]
[WhiteElo "2220"]
[BlackElo "2706"]
[Result "0-1"]
[Round "02"]
[TimeControl "180+2"]
[Date "2023.05.23"]
[WhiteClock "0:00:00"]
[BlackClock "0:00:08"]

1. e4 {[%clk 0:03:00]}  e5 {[%clk 0:02:57]} 2. Nf3 {[%clk 0:03:00]}  Nf6 {[%clk 0:02:57]} 3. Nxe5 {[%clk 0:02:57]}  d6 {[%clk 0:02:57]} 4. Nf3 {[%clk 0:02:57]}  Nxe4 {[%clk 0:02:57]} 5. d3 {[%clk 0:02:54]}  Nf6 {[%clk 0:02:57]} 6. d4 {[%clk 0:02:54]}  d5 {[%clk 0:02:53]} 7. Bd3 {[%clk 0:02:54]}  Bd6 {[%clk 0:02:53]} 8. O-O {[%clk 0:02:54]}  O-O {[%clk 0:02:53]} 9. Bg5 {[%clk 0:02:52]}  h6 {[%clk 0:02:52]} 10. Bh4 {[%clk 0:02:52]}  Re8 {[%clk 0:02:48]} 11. Nc3 {[%clk 0:02:46]}  c6 {[%clk 0:02:44]} 12. Qd2 {[%clk 0:02:44]}  Be6 {[%clk 0:02:43]} 13. Rfe1 {[%clk 0:02:44]}  Nbd7 {[%clk 0:02:42]} 14. Ne5 {[%clk 0:02:44]}  Be7 {[%clk 0:02:35]} 15. Ne2 {[%clk 0:02:37]}  Nxe5 {[%clk 0:02:28]} 16. dxe5 {[%clk 0:02:37]}  Nd7 {[%clk 0:02:12]} 17. Bxe7 {[%clk 0:02:30]}  Rxe7 {[%clk 0:02:08]} 18. f4 {[%clk 0:02:30]}  Qb6+ {[%clk 0:02:08]} 19. Kh1 {[%clk 0:02:27]}  Nc5 {[%clk 0:02:03]} 20. Ng3 {[%clk 0:02:07]}  Bd7 {[%clk 0:01:28]} 21. f5 {[%clk 0:01:27]}  Rae8 {[%clk 0:01:23]} 22. Qf4 {[%clk 0:00:20]}  Qc7 {[%clk 0:01:22]} 23. Qd4 {[%clk 0:00:06]}  Nxd3 {[%clk 0:01:12]} 24. cxd3 {[%clk 0:00:06]}  Rxe5 {[%clk 0:01:12]} 25. Rxe5 {[%clk 0:00:06]}  Qxe5 {[%clk 0:01:13]} 26. Qxa7 {[%clk 0:00:06]}  Qxb2 {[%clk 0:00:49]} 27. Rf1 {[%clk 0:00:07]}  Bc8 {[%clk 0:00:19]} 28. f6 {[%clk 0:00:07]}  g6 {[%clk 0:00:18]} 29. Qc5 {[%clk 0:00:05]}  Qe5 {[%clk 0:00:15]} 30. Qc1 {[%clk 0:00:04]}  Qe3 {[%clk 0:00:14]} 31. Qc3 {[%clk 0:00:03]}  Bg4 {[%clk 0:00:09]} 32. a4 {[%clk 0:00:03]}  h5 {[%clk 0:00:08]} 33. a5 {[%clk 0:00:00]}  h4 {[%clk 0:00:08]} 0-1


[Site "https://www.chess.com"]

[Event "Titled Tuesday Blitz May 23 Early 2023"]
[White "Antal, Gergely"]
[Black "Urquhart, Ed"]
[WhiteFideId "717312"]
[BlackFideId "2603748"]
[WhiteElo "2471"]
[BlackElo "2184"]
[Result "0-1"]
[Round "02"]
[TimeControl "180+2"]
[Date "2023.05.23"]
[WhiteClock "0:00:43"]
[BlackClock "0:00:45"]

1. b3 {[%clk 0:02:56]}  Nf6 {[%clk 0:02:57]} 2. Bb2 {[%clk 0:02:57]}  e6 {[%clk 0:02:57]} 3. g3 {[%clk 0:02:58]}  d5 {[%clk 0:02:57]} 4. Bg2 {[%clk 0:02:59]}  Be7 {[%clk 0:02:58]} 5. Nf3 {[%clk 0:02:59]}  O-O {[%clk 0:02:58]} 6. O-O {[%clk 0:03:00]}  b6 {[%clk 0:02:58]} 7. e3 {[%clk 0:03:01]}  Bb7 {[%clk 0:02:58]} 8. c4 {[%clk 0:03:01]}  c5 {[%clk 0:02:59]} 9. Qc2 {[%clk 0:03:01]}  Nc6 {[%clk 0:02:59]} 10. Rd1 {[%clk 0:03:00]}  Rc8 {[%clk 0:02:57]} 11. a3 {[%clk 0:02:59]}  Qc7 {[%clk 0:02:56]} 12. Nc3 {[%clk 0:02:57]}  Qb8 {[%clk 0:02:56]} 13. Rac1 {[%clk 0:02:58]}  Rfd8 {[%clk 0:02:55]} 14. Qb1 {[%clk 0:02:57]}  d4 {[%clk 0:02:46]} 15. Ne2 {[%clk 0:02:57]}  e5 {[%clk 0:02:40]} 16. exd4 {[%clk 0:02:51]}  exd4 {[%clk 0:02:39]} 17. Re1 {[%clk 0:02:47]}  Bf8 {[%clk 0:02:35]} 18. Nf4 {[%clk 0:02:44]}  a5 {[%clk 0:02:33]} 19. h4 {[%clk 0:02:34]}  Re8 {[%clk 0:02:32]} 20. Nd5 {[%clk 0:02:30]}  Nxd5 {[%clk 0:02:29]} 21. cxd5 {[%clk 0:02:29]}  Ne7 {[%clk 0:02:25]} 22. Ng5 {[%clk 0:02:21]}  g6 {[%clk 0:02:21]} 23. h5 {[%clk 0:02:14]}  Nxd5 {[%clk 0:01:48]} 24. hxg6 {[%clk 0:02:02]}  hxg6 {[%clk 0:01:48]} 25. Be4 {[%clk 0:02:02]}  Bh6 {[%clk 0:01:33]} 26. Nxf7 {[%clk 0:01:59]}  Kxf7 {[%clk 0:01:32]} 27. Bxg6+ {[%clk 0:01:59]}  Kg7 {[%clk 0:01:31]} 28. Bxe8 {[%clk 0:01:40]}  Rxe8 {[%clk 0:01:31]} 29. Qf5 {[%clk 0:01:37]}  Nf6 {[%clk 0:01:21]} 30. Re6 {[%clk 0:01:21]}  Rxe6 {[%clk 0:01:18]} 31. Qxe6 {[%clk 0:01:22]}  Qc7 {[%clk 0:01:12]} 32. Bxd4 {[%clk 0:01:18]}  Qd8 {[%clk 0:00:48]} 33. Qxb6 {[%clk 0:00:43]}  Qxb6 {[%clk 0:00:45]} 0-1


[Site "https://www.chess.com"]

[Event "Titled Tuesday Blitz May 23 Early 2023"]
[White "Srihari L R"]
[Black "Kirillov, Dmitry"]
[WhiteFideId "46617116"]
[BlackFideId "34180572"]
[WhiteElo "2334"]
[BlackElo "2161"]
[Result "1-0"]
[Round "02"]
[TimeControl "180+2"]
[Date "2023.05.23"]
[WhiteClock "0:01:28"]
[BlackClock "0:00:07"]

1. Nf3 {[%clk 0:02:52]}  d5 {[%clk 0:02:53]} 2. c4 {[%clk 0:02:48]}  e6 {[%clk 0:02:52]} 3. b3 {[%clk 0:02:45]}  Nf6 {[%clk 0:02:46]} 4. Bb2 {[%clk 0:02:45]}  Be7 {[%clk 0:02:45]} 5. g3 {[%clk 0:02:45]}  O-O {[%clk 0:02:42]} 6. Bg2 {[%clk 0:02:45]}  c5 {[%clk 0:02:41]} 7. O-O {[%clk 0:02:44]}  Nc6 {[%clk 0:02:40]} 8. e3 {[%clk 0:02:44]}  dxc4 {[%clk 0:02:28]} 9. bxc4 {[%clk 0:02:44]}  Qd3 {[%clk 0:02:29]} 10. Qb3 {[%clk 0:02:43]}  Rd8 {[%clk 0:02:23]} 11. Rd1 {[%clk 0:02:25]}  Nb4 {[%clk 0:02:18]} 12. Ne5 {[%clk 0:02:21]}  Qc2 {[%clk 0:02:05]} 13. Na3 {[%clk 0:02:14]}  Qxb3 {[%clk 0:02:04]} 14. axb3 {[%clk 0:02:15]}  Nd3 {[%clk 0:02:00]} 15. Nxd3 {[%clk 0:01:43]}  Rxd3 {[%clk 0:02:01]} 16. Bc3 {[%clk 0:01:43]}  Bd7 {[%clk 0:01:40]} 17. Bxb7 {[%clk 0:01:38]}  Rb8 {[%clk 0:01:40]} 18. Bf3 {[%clk 0:01:38]}  Rxb3 {[%clk 0:01:38]} 19. Nb5 {[%clk 0:01:38]}  Bxb5 {[%clk 0:01:31]} 20. cxb5 {[%clk 0:01:38]}  Nd5 {[%clk 0:00:44]} 21. Rxa7 {[%clk 0:01:29]}  Nxc3 {[%clk 0:00:37]} 22. dxc3 {[%clk 0:01:29]}  Rxd1+ {[%clk 0:00:37]} 23. Bxd1 {[%clk 0:01:30]}  Rb1 {[%clk 0:00:15]} 24. Rxe7 {[%clk 0:01:30]}  Rxd1+ {[%clk 0:00:15]} 25. Kg2 {[%clk 0:01:30]}  Kf8 {[%clk 0:00:13]} 26. Rc7 {[%clk 0:01:29]}  Rd5 {[%clk 0:00:07]} 27. b6 {[%clk 0:01:28]} 1-0


[Site "https://www.chess.com"]

[Event "Titled Tuesday Blitz May 23 Early 2023"]
[White "Melikyan, Gnel"]
[Black "Goswami, Vedant"]
[WhiteFideId "54109990"]
[BlackFideId "5003725"]
[WhiteElo "2138"]
[BlackElo "2011"]
[Result "1-0"]
[Round "02"]
[TimeControl "180+2"]
[Date "2023.05.23"]
[WhiteClock "0:00:37"]
[BlackClock "0:00:03"]

1. b4 {[%clk 0:02:55]}  g6 {[%clk 0:02:56]} 2. Bb2 {[%clk 0:02:55]}  Nf6 {[%clk 0:02:56]} 3. Bxf6 {[%clk 0:02:53]}  exf6 {[%clk 0:02:55]} 4. a3 {[%clk 0:02:54]}  a5 {[%clk 0:02:53]} 5. b5 {[%clk 0:02:54]}  b6 {[%clk 0:02:49]} 6. e3 {[%clk 0:02:54]}  Bb7 {[%clk 0:02:49]} 7. Nf3 {[%clk 0:02:54]}  Bg7 {[%clk 0:02:33]} 8. c4 {[%clk 0:02:54]}  O-O {[%clk 0:02:32]} 9. Nc3 {[%clk 0:02:55]}  f5 {[%clk 0:02:32]} 10. d4 {[%clk 0:02:54]}  f4 {[%clk 0:02:31]} 11. exf4 {[%clk 0:02:51]}  Re8+ {[%clk 0:02:29]} 12. Be2 {[%clk 0:02:51]}  Bxf3 {[%clk 0:02:28]} 13. gxf3 {[%clk 0:02:49]}  c5 {[%clk 0:02:11]} 14. bxc6 {[%clk 0:02:37]}  Nxc6 {[%clk 0:02:09]} 15. Nb5 {[%clk 0:02:37]}  Qf6 {[%clk 0:01:27]} 16. Qd2 {[%clk 0:01:46]}  Nxd4 {[%clk 0:01:24]} 17. Nxd4 {[%clk 0:01:46]}  Qxd4 {[%clk 0:01:23]} 18. Qxd4 {[%clk 0:01:46]}  Bxd4 {[%clk 0:01:23]} 19. Rd1 {[%clk 0:01:44]}  Bc5 {[%clk 0:01:21]} 20. a4 {[%clk 0:01:44]}  Re7 {[%clk 0:01:16]} 21. Kf1 {[%clk 0:01:33]}  Rae8 {[%clk 0:01:16]} 22. Bd3 {[%clk 0:01:34]}  Bb4 {[%clk 0:00:59]} 23. f5 {[%clk 0:01:28]}  Kg7 {[%clk 0:00:56]} 24. fxg6 {[%clk 0:01:26]}  hxg6 {[%clk 0:00:56]} 25. Kg2 {[%clk 0:01:18]}  Re1 {[%clk 0:00:53]} 26. Be4 {[%clk 0:01:16]}  Rxh1 {[%clk 0:00:46]} 27. Kxh1 {[%clk 0:01:15]}  d6 {[%clk 0:00:45]} 28. Kg2 {[%clk 0:01:13]}  f5 {[%clk 0:00:44]} 29. Bd3 {[%clk 0:01:13]}  Bc5 {[%clk 0:00:43]} 30. h4 {[%clk 0:01:09]}  Kf6 {[%clk 0:00:41]} 31. Rh1 {[%clk 0:01:09]}  Rh8 {[%clk 0:00:35]} 32. f4 {[%clk 0:01:09]}  Rh7 {[%clk 0:00:32]} 33. Be2 {[%clk 0:01:09]}  Rh8 {[%clk 0:00:31]} 34. Bf3 {[%clk 0:01:09]}  Rh7 {[%clk 0:00:31]} 35. Kg3 {[%clk 0:01:09]}  Rh8 {[%clk 0:00:30]} 36. Re1 {[%clk 0:01:09]}  Kf7 {[%clk 0:00:26]} 37. Bd5+ {[%clk 0:01:09]}  Kg7 {[%clk 0:00:24]} 38. Re7+ {[%clk 0:01:08]}  Kh6 {[%clk 0:00:23]} 39. Re6 {[%clk 0:01:03]}  Rh7 {[%clk 0:00:20]} 40. Bf3 {[%clk 0:01:01]}  Rg7 {[%clk 0:00:18]} 41. Be2 {[%clk 0:00:52]}  Kh7 {[%clk 0:00:18]} 42. Bd3 {[%clk 0:00:52]}  Kg8 {[%clk 0:00:18]} 43. Rf6 {[%clk 0:00:46]}  Bb4 {[%clk 0:00:14]} 44. Kf3 {[%clk 0:00:45]}  Bc5 {[%clk 0:00:14]} 45. h5 {[%clk 0:00:42]}  gxh5 {[%clk 0:00:13]} 46. Bxf5 {[%clk 0:00:43]}  h4 {[%clk 0:00:13]} 47. Be6+ {[%clk 0:00:40]}  Kh7 {[%clk 0:00:12]} 48. Bf5+ {[%clk 0:00:40]}  Kg8 {[%clk 0:00:11]} 49. Rh6 {[%clk 0:00:41]}  Rf7 {[%clk 0:00:10]} 50. Be6 {[%clk 0:00:41]}  Kg7 {[%clk 0:00:09]} 51. Rxh4 {[%clk 0:00:42]}  Re7 {[%clk 0:00:09]} 52. f5 {[%clk 0:00:42]}  Bd4 {[%clk 0:00:09]} 53. Rxd4 {[%clk 0:00:37]}  Kf6 {[%clk 0:00:03]} 54. Rxd6 {[%clk 0:00:37]} 1-0


[Site "https://www.chess.com"]

[Event "Titled Tuesday Blitz May 23 Early 2023"]
[White "Bogaudinov, Rushan"]
[Black "Kozak, Adam"]
[WhiteFideId "4129288"]
[BlackFideId "753246"]
[WhiteElo "1941"]
[BlackElo "2469"]
[Result "0-1"]
[Round "02"]
[TimeControl "180+2"]
[Date "2023.05.23"]
[WhiteClock "0:00:00"]
[BlackClock "0:01:16"]

1. e4 {[%clk 0:03:00]}  c5 {[%clk 0:02:51]} 2. Nf3 {[%clk 0:02:55]}  d6 {[%clk 0:02:45]} 3. d4 {[%clk 0:02:54]}  cxd4 {[%clk 0:02:45]} 4. Nxd4 {[%clk 0:02:55]}  Nf6 {[%clk 0:02:44]} 5. Nc3 {[%clk 0:02:55]}  a6 {[%clk 0:02:44]} 6. h3 {[%clk 0:02:55]}  e6 {[%clk 0:02:43]} 7. g4 {[%clk 0:02:55]}  b5 {[%clk 0:02:43]} 8. Bg2 {[%clk 0:02:47]}  Bb7 {[%clk 0:02:38]} 9. g5 {[%clk 0:02:17]}  Nfd7 {[%clk 0:02:34]} 10. h4 {[%clk 0:02:10]}  Nc6 {[%clk 0:02:32]} 11. Be3 {[%clk 0:02:09]}  Rc8 {[%clk 0:02:30]} 12. a3 {[%clk 0:02:05]}  Nde5 {[%clk 0:02:30]} 13. O-O {[%clk 0:01:59]}  Nc4 {[%clk 0:02:29]} 14. Rb1 {[%clk 0:01:57]}  Nxe3 {[%clk 0:02:24]} 15. fxe3 {[%clk 0:01:57]}  Ne5 {[%clk 0:02:25]} 16. Qe2 {[%clk 0:01:52]}  h6 {[%clk 0:02:23]} 17. Nf3 {[%clk 0:01:45]}  hxg5 {[%clk 0:02:11]} 18. hxg5 {[%clk 0:01:26]}  Rc5 {[%clk 0:02:01]} 19. Rbd1 {[%clk 0:01:21]}  Qe7 {[%clk 0:01:55]} 20. a4 {[%clk 0:01:04]}  Nxf3+ {[%clk 0:01:44]} 21. Qxf3 {[%clk 0:01:04]}  Rxg5 {[%clk 0:01:45]} 22. axb5 {[%clk 0:01:00]}  axb5 {[%clk 0:01:45]} 23. Ra1 {[%clk 0:00:51]}  g6 {[%clk 0:01:28]} 24. Ra7 {[%clk 0:00:50]}  Bg7 {[%clk 0:01:28]} 25. Nxb5 {[%clk 0:00:36]}  Rxb5 {[%clk 0:01:22]} 26. Qe2 {[%clk 0:00:25]}  Rxb2 {[%clk 0:01:20]} 27. Qc4 {[%clk 0:00:25]}  O-O {[%clk 0:01:19]} 28. e5 {[%clk 0:00:23]}  Qg5 {[%clk 0:01:17]} 29. Rxb7 {[%clk 0:00:21]}  Rxb7 {[%clk 0:01:16]} 30. exd6 {[%clk 0:00:20]}  Rd7 {[%clk 0:01:16]} 31. Qc6 {[%clk 0:00:19]}  Rfd8 {[%clk 0:01:17]} 32. Rd1 {[%clk 0:00:19]}  Qxe3+ {[%clk 0:01:16]} 33. Kh1 {[%clk 0:00:00]}  Be5 {[%clk 0:01:16]} 0-1


[Site "https://www.chess.com"]

[Event "Titled Tuesday Blitz May 23 Early 2023"]
[White "Gharibyan, Mamikon"]
[Black "NLLO777"]
[WhiteFideId "13308300"]
[WhiteElo "2445"]
[BlackElo "2388"]
[Result "1-0"]
[Round "02"]
[TimeControl "180+2"]
[Date "2023.05.23"]
[WhiteClock "0:00:47"]
[BlackClock "0:00:19"]

1. b3 {[%clk 0:02:57]}  d5 {[%clk 0:02:59]} 2. Bb2 {[%clk 0:02:57]}  Nf6 {[%clk 0:02:59]} 3. Nf3 {[%clk 0:02:57]}  c5 {[%clk 0:03:00]} 4. e3 {[%clk 0:02:56]}  Bf5 {[%clk 0:02:57]} 5. Bb5+ {[%clk 0:02:55]}  Nbd7 {[%clk 0:02:56]} 6. Nh4 {[%clk 0:02:54]}  Bg4 {[%clk 0:02:51]} 7. f3 {[%clk 0:02:52]}  Bh5 {[%clk 0:02:51]} 8. g4 {[%clk 0:02:52]}  Bg6 {[%clk 0:02:52]} 9. g5 {[%clk 0:02:50]}  Nh5 {[%clk 0:02:47]} 10. f4 {[%clk 0:02:50]}  e6 {[%clk 0:02:46]} 11. Be2 {[%clk 0:02:49]}  h6 {[%clk 0:02:36]} 12. Bxh5 {[%clk 0:02:44]}  hxg5 {[%clk 0:02:31]} 13. Nxg6 {[%clk 0:02:39]}  fxg6 {[%clk 0:02:32]} 14. Bxg6+ {[%clk 0:02:39]}  Ke7 {[%clk 0:02:32]} 15. fxg5 {[%clk 0:02:37]}  Kd6 {[%clk 0:02:32]} 16. Nc3 {[%clk 0:02:33]}  Qxg5 {[%clk 0:02:32]} 17. Qe2 {[%clk 0:02:18]}  Qxg6 {[%clk 0:02:25]} 18. O-O-O {[%clk 0:02:12]}  Be7 {[%clk 0:02:24]} 19. Qb5 {[%clk 0:02:06]}  Kc7 {[%clk 0:02:09]} 20. d4 {[%clk 0:02:04]}  a6 {[%clk 0:02:06]} 21. Qe2 {[%clk 0:02:01]}  Raf8 {[%clk 0:01:56]} 22. dxc5 {[%clk 0:01:57]}  Bxc5 {[%clk 0:01:53]} 23. Rhg1 {[%clk 0:01:55]}  Qh6 {[%clk 0:01:52]} 24. Rxg7 {[%clk 0:01:52]}  Bxe3+ {[%clk 0:01:29]} 25. Kb1 {[%clk 0:01:49]}  Rf2 {[%clk 0:01:20]} 26. Qg4 {[%clk 0:01:43]}  Qh5 {[%clk 0:00:35]} 27. Nxd5+ {[%clk 0:01:37]}  Kb8 {[%clk 0:00:30]} 28. Qxh5 {[%clk 0:01:30]}  Rxh5 {[%clk 0:00:28]} 29. Nxe3 {[%clk 0:01:26]}  Nc5 {[%clk 0:00:23]} 30. a4 {[%clk 0:01:19]}  Rfxh2 {[%clk 0:00:20]} 31. a5 {[%clk 0:01:11]}  Re2 {[%clk 0:00:20]} 32. Rd8+ {[%clk 0:01:09]}  Ka7 {[%clk 0:00:20]} 33. Rgg8 {[%clk 0:01:09]}  b5 {[%clk 0:00:21]} 34. Rg7+ {[%clk 0:00:47]}  Nb7 {[%clk 0:00:19]} 35. Bd4+ {[%clk 0:00:47]} 1-0


[Site "https://www.chess.com"]

[Event "Titled Tuesday Blitz May 23 Early 2023"]
[White "Novikova, Galina"]
[Black "Macovei, Andrei"]
[WhiteFideId "4157095"]
[BlackFideId "13904680"]
[WhiteElo "1953"]
[BlackElo "2447"]
[Result "1-0"]
[Round "02"]
[TimeControl "180+2"]
[Date "2023.05.23"]
[WhiteClock "0:00:51"]
[BlackClock "0:00:00"]

1. e4 {[%clk 0:03:00]}  c6 {[%clk 0:02:43]} 2. d4 {[%clk 0:03:00]}  d5 {[%clk 0:02:44]} 3. e5 {[%clk 0:03:01]}  Bf5 {[%clk 0:02:44]} 4. Nc3 {[%clk 0:03:00]}  e6 {[%clk 0:02:43]} 5. g4 {[%clk 0:03:01]}  Bg6 {[%clk 0:02:42]} 6. Nge2 {[%clk 0:03:02]}  h6 {[%clk 0:02:38]} 7. Nf4 {[%clk 0:03:00]}  Bh7 {[%clk 0:02:38]} 8. Be3 {[%clk 0:02:54]}  Nd7 {[%clk 0:02:24]} 9. Bd3 {[%clk 0:02:54]}  Bxd3 {[%clk 0:02:16]} 10. Qxd3 {[%clk 0:02:55]}  a6 {[%clk 0:02:14]} 11. O-O-O {[%clk 0:02:53]}  Ne7 {[%clk 0:02:09]} 12. h4 {[%clk 0:02:51]}  c5 {[%clk 0:02:08]} 13. Kb1 {[%clk 0:02:39]}  cxd4 {[%clk 0:01:48]} 14. Bxd4 {[%clk 0:02:38]}  Nc6 {[%clk 0:01:48]} 15. Ncxd5 {[%clk 0:02:35]}  Nxd4 {[%clk 0:01:27]} 16. Qxd4 {[%clk 0:02:16]}  exd5 {[%clk 0:01:27]} 17. e6 {[%clk 0:02:01]}  Nf6 {[%clk 0:01:00]} 18. exf7+ {[%clk 0:01:43]}  Kxf7 {[%clk 0:00:54]} 19. g5 {[%clk 0:01:31]}  hxg5 {[%clk 0:00:53]} 20. hxg5 {[%clk 0:01:32]}  Rxh1 {[%clk 0:00:54]} 21. Rxh1 {[%clk 0:01:32]}  Ne4 {[%clk 0:00:46]} 22. g6+ {[%clk 0:01:11]}  Kg8 {[%clk 0:00:39]} 23. Nxd5 {[%clk 0:01:12]}  Nxf2 {[%clk 0:00:30]} 24. Qxf2 {[%clk 0:00:56]}  Qxd5 {[%clk 0:00:00]} 25. Rh8+ {[%clk 0:00:51]} 1-0


[Site "https://www.chess.com"]

[Event "Titled Tuesday Blitz May 23 Early 2023"]
[White "Harsh Suresh"]
[Black "Makhmudov, Shukhrat"]
[WhiteFideId "45018464"]
[BlackFideId "14200775"]
[WhiteElo "2209"]
[BlackElo "2135"]
[Result "1-0"]
[Round "02"]
[TimeControl "180+2"]
[Date "2023.05.23"]
[WhiteClock "0:00:30"]
[BlackClock "0:01:16"]

1. e4 {[%clk 0:03:00]}  e5 {[%clk 0:03:00]} 2. Nf3 {[%clk 0:03:00]}  Nc6 {[%clk 0:03:00]} 3. Bb5 {[%clk 0:03:00]}  a6 {[%clk 0:03:01]} 4. Ba4 {[%clk 0:03:00]}  Nf6 {[%clk 0:03:01]} 5. O-O {[%clk 0:03:00]}  Be7 {[%clk 0:03:01]} 6. Bxc6 {[%clk 0:03:01]}  dxc6 {[%clk 0:03:01]} 7. Re1 {[%clk 0:02:58]}  Nd7 {[%clk 0:03:01]} 8. c3 {[%clk 0:02:55]}  c5 {[%clk 0:02:59]} 9. d3 {[%clk 0:02:51]}  O-O {[%clk 0:02:58]} 10. Be3 {[%clk 0:02:51]}  b6 {[%clk 0:02:55]} 11. a4 {[%clk 0:02:51]}  a5 {[%clk 0:02:54]} 12. Nbd2 {[%clk 0:02:51]}  Ba6 {[%clk 0:02:54]} 13. Qc2 {[%clk 0:02:51]}  f6 {[%clk 0:02:51]} 14. h4 {[%clk 0:02:45]}  Re8 {[%clk 0:02:51]} 15. h5 {[%clk 0:02:44]}  Nf8 {[%clk 0:02:49]} 16. Nc4 {[%clk 0:02:42]}  Ne6 {[%clk 0:02:47]} 17. Nh4 {[%clk 0:02:41]}  Bf8 {[%clk 0:02:42]} 18. Rad1 {[%clk 0:02:40]}  Qd7 {[%clk 0:02:41]} 19. Qe2 {[%clk 0:02:40]}  Qxa4 {[%clk 0:02:38]} 20. Nf5 {[%clk 0:02:38]}  Qc6 {[%clk 0:02:28]} 21. Qg4 {[%clk 0:02:38]}  Kh8 {[%clk 0:02:25]} 22. Qh4 {[%clk 0:02:34]}  Nd8 {[%clk 0:02:00]} 23. f4 {[%clk 0:02:14]}  Bxc4 {[%clk 0:01:47]} 24. dxc4 {[%clk 0:02:00]}  Qxe4 {[%clk 0:01:47]} 25. Ng3 {[%clk 0:01:22]}  Qxc4 {[%clk 0:01:46]} 26. h6 {[%clk 0:01:21]}  g6 {[%clk 0:01:45]} 27. Qxf6+ {[%clk 0:01:20]}  Kg8 {[%clk 0:01:43]} 28. Rd7 {[%clk 0:00:37]}  Nf7 {[%clk 0:01:29]} 29. f5 {[%clk 0:00:30]}  Qg4 {[%clk 0:01:16]} 30. Qxf7+ {[%clk 0:00:30]} 1-0


[Site "https://www.chess.com"]